[Event "HUN-ch Rapid 2019"]
[Site "Ajka"]
[Date "2019.07.21"]
[Round "10.7"]
[White "Emodi, Barnabas"]
[Black "Vertetics, Attila"]
[Result "1/2-1/2"]
[ECO "A46"]
[WhiteElo "2365"]
[BlackElo "2438"]
[Annotator "NA"]
[PlyCount "49"]
[EventDate "2019.07.18"]
[EventType "swiss"]
[EventCountry "HUN"]
[SourceTitle "playchess.com"]
[Source "ChessBase"]
[SourceQuality "1"]
[TimeControl "1200+5"]

1. d4 {[%emt 0:00:02]} Nf6 {[%emt 0:00:01]} 2. Nf3 {[%emt 0:00:02]} e6 {[%emt 0:00:03]} 3. e3 {[%emt 0:00:03]} c5 {[%emt 0:00:22]} 4. c4 {[%emt 0:00:12]} cxd4 {[%emt 0:00:09]} 5. exd4 {[%emt 0:00:02]} d5 {[%emt 0:00:20]} 6. Nc3 {[%emt 0:00:03]} Bb4 {[%emt 0:00:51]} 7. cxd5 {[%emt 0:01:04]} Nxd5 {[%emt 0:00:21]} 8. Bd2 {[%emt 0:00:10]} Nc6 {[%emt 0:00:22]} 9. Bd3 {[%emt 0:00:39]} Nf6 {[%emt 0:00:52]} 10. a3 {[%emt 0:01:07]} Be7 {[%emt 0:02:01]} 11. Be3 {[%emt 0:01:57]} O-O {[%emt 0:00:10]} 12. O-O {[%emt 0:00:03]} b6 {[%emt 0:00:02]} 13. Qe2 {[%emt 0:02:47]} Bb7 {[%emt 0:00:06]} 14. Rad1 {[%emt 0:00:05]} Rc8 {[%emt 0:00:46]} 15. Ne5 {[%emt 0:03:58]} Na5 {[%emt 0:03:43]} 16. Ba6 {[%emt 0:03:52]} Nd5 {[%emt 0:02:22]} 17. Nxd5 {[%emt 0:01:25]} Qxd5 {[%emt 0:00:01]} 18. Bxb7 {[%emt 0:00:09]} Qxb7 {[%emt 0:00:30]} 19. b4 {[%emt 0:00:06]} Nc6 {[%emt 0:00:11]} 20. Qf3 {[%emt 0:00:21]} Qc7 {[%emt 0:01:55]} 21. Nxc6 {[%emt 0:00:55]} Qxc6 {[%emt 0:00:01]} 22. d5 {[%emt 0:00:12]} exd5 {[%emt 0:00:02]} 23. Qxd5 {[%emt 0:00:05]} Qxd5 {[%emt 0:01:03]} 24. Rxd5 {[%emt 0:00:01]} Rfd8 {[%emt 0:00:09]} 25. Rfd1 1/2-1/2

[Event "HUN-ch Rapid 2019"]
[Site "Ajka"]
[Date "2019.07.21"]
[Round "10.8"]
[White "Bohus, Adam"]
[Black "Aczel, Gergely"]
[Result "0-1"]
[ECO "E11"]
[WhiteElo "2219"]
[BlackElo "2540"]
[Annotator "ChessBase"]
[PlyCount "100"]
[EventDate "2019.07.18"]
[EventType "swiss"]
[EventCountry "HUN"]
[SourceTitle "playchess.com"]
[Source "ChessBase"]
[SourceQuality "1"]
[TimeControl "1200+5"]

1. d4 {[%emt 0:00:02]} Nf6 {[%emt 0:00:02]} 2. c4 {[%emt 0:00:01]} e6 {[%emt 0:00:01]} 3. Nf3 {[%emt 0:00:03]} Bb4+ {[%emt 0:00:03]} 4. Nbd2 {[%emt 0:00:02]} d6 {[%emt 0:00:03]} 5. a3 {[%emt 0:00:19]} Bxd2+ {[%emt 0:00:12]} 6. Qxd2 {[%emt 0:00:19]} Nbd7 {[%emt 0:00:01]} 7. e3 {[%emt 0:00:05]} O-O {[%emt 0:00:08]} 8. b4 {[%emt 0:00:22]} a5 {[%emt 0:00:27]} 9. Bb2 {[%emt 0:00:54]} axb4 {[%emt 0:00:21]} 10. axb4 {[%emt 0:00:01]} Rxa1+ {[%emt 0:00:03]} 11. Bxa1 {[%emt 0:00:02]} b5 {[%emt 0:00:14]} 12. c5 {[%emt 0:04:17]} Bb7 {[%emt 0:02:01]} 13. Bxb5 {[%emt 0:02:49]} Qa8 {[%emt 0:00:01]} 14. Ke2 {[%emt 0:06:14]} Rb8 {[%emt 0:00:02]} 15. Bd3 {[%emt 0:01:14]} Ba6 {[%emt 0:03:14]} 16. Rb1 {[%emt 0:01:57]} Ne4 {[%emt 0:00:16]} 17. Qc2 {[%emt 0:00:12]} Bxd3+ {[%emt 0:00:04]} 18. Qxd3 {[%emt 0:01:48]} Qa2+ {[%emt 0:00:44]} 19. Bb2 {[%emt 0:00:01]} d5 {[%emt 0:08:07]} 20. Nd2 {[%emt 0:00:09]} Rxb4 {[%emt 0:00:19]} 21. Nxe4 {[%emt 0:00:02]} dxe4 {[%emt 0:00:08]} 22. Qc2 {[%emt 0:00:32]} h6 {[%emt 0:00:17]} 23. Kd1 {[%emt 0:00:11]} Nf6 {[%emt 0:00:09]} 24. Kc1 {[%emt 0:00:12]} Nd5 {[%emt 0:00:49]} 25. Ra1 {[%emt 0:00:00]} Qc4 {[%emt 0:00:34]} 26. Qxc4 {[%emt 0:00:06]} Rxc4+ {[%emt 0:00:01]} 27. Kd2 f5 {[%emt 0:00:20]} 28. Ra8+ {[%emt 0:00:16]} Kf7 {[%emt 0:00:01]} 29. Rd8 {[%emt 0:00:03]} g5 {[%emt 0:00:06]} 30. Rd7+ {[%emt 0:00:03]} Kf6 {[%emt 0:00:04]} 31. Rh7 {[%emt 0:00:08]} Kg6 {[%emt 0:00:01]} 32. Rh8 {[%emt 0:00:02]} f4 {[%emt 0:00:11]} 33. Re8 {[%emt 0:00:03]} Kf7 {[%emt 0:00:03]} 34. Rh8 {[%emt 0:00:01]} Rb4 {[%emt 0:00:20]} 35. Kc2 {[%emt 0:00:07]} fxe3 {[%emt 0:00:11]} 36. fxe3 {[%emt 0:00:01]} Nxe3+ {[%emt 0:00:02]} 37. Kc3 {[%emt 0:00:07]} Nd5+ {[%emt 0:00:13]} 38. Kc2 {[%emt 0:00:01]} e3 {[%emt 0:00:08]} 39. Bc1 {[%emt 0:00:20]} Rc4+ {[%emt 0:00:12]} 40. Kd1 e2+ {[%emt 0:00:16]} 41. Kxe2 {[%emt 0:00:02]} Rxc1 {[%emt 0:00:02]} 42. Rxh6 {[%emt 0:00:02]} Rc2+ {[%emt 0:00:09]} 43. Kf3 {[%emt 0:00:01]} Rd2 {[%emt 0:00:05]} 44. h4 {[%emt 0:00:11]} Rd3+ {[%emt 0:00:36]} 45. Kf2 {[%emt 0:00:11]} g4 {[%emt 0:00:06]} 46. Rh7+ {[%emt 0:00:08]} Kg6 {[%emt 0:00:06]} 47. Rh8 {[%emt 0:00:07]} g3+ {[%emt 0:00:15]} 48. Ke2 {[%emt 0:00:04]} Nf4+ {[%emt 0:00:02]} 49. Ke1 {[%emt 0:00:04]} Nxg2+ {[%emt 0:00:05]} 50. Kf1 {[%emt 0:00:01]} Nf4 {[%emt 0:00:04]} 0-1

[Event "HUN-ch Rapid 2019"]
[Site "Ajka"]
[Date "2019.07.21"]
[Round "10.9"]
[White "Medvegy, Zoltan"]
[Black "Videki, Sandor"]
[Result "1-0"]
[ECO "B67"]
[WhiteElo "2539"]
[BlackElo "2401"]
[Annotator "ChessBase"]
[PlyCount "97"]
[EventDate "2019.07.18"]
[EventType "swiss"]
[EventCountry "HUN"]
[SourceTitle "playchess.com"]
[Source "ChessBase"]
[SourceQuality "1"]
[TimeControl "1200+5"]

1. e4 c5 2. Nf3 Nc6 3. d4 cxd4 4. Nxd4 Nf6 5. Nc3 d6 6. Bg5 e6 7. Qd2 a6 8. O-O-O Bd7 9. f4 b5 10. Bxf6 gxf6 11. Kb1 Qb6 12. Nxc6 Bxc6 13. Bd3 b4 14. Ne2 h5 15. Qe1 h4 16. f5 e5 17. Bc4 Rc8 18. Nc1 a5 19. Bd5 Ba4 20. Bb3 Bb5 21. Nd3 Ke7 22. Rf1 h3 23. g4 Bh6 24. Rf3 Bg5 25. Qf1 Bc6 26. Rxh3 Bxe4 27. Nf2 Bc6 28. Rxh8 Rxh8 29. Qd3 d5 30. Ne4 Bf4 31. Bxd5 Rd8 32. c4 bxc3 33. Nxc3 Kf8 34. Qc4 Rb8 35. b3 Be8 36. Ne4 Be3 37. h4 a4 38. g5 axb3 39. axb3 Qa5 40. Nxf6 Bd4 41. Nxe8 Rxe8 42. Kc2 Rb8 43. Kd3 Qa3 44. f6 Qb2 45. Qc2 Qa3 46. Rc1 Qa6+ 47. Qc4 Rxb3+ 48. Ke4 Qxc4 49. Rxc4 1-0

[Event "HUN-ch Rapid 2019"]
[Site "Ajka"]
[Date "2019.07.21"]
[Round "10.10"]
[White "Horvath, Tamas"]
[Black "Banusz, Tamas"]
[Result "0-1"]
[ECO "B01"]
[WhiteElo "2306"]
[BlackElo "2626"]
[Annotator "ChessBase"]
[PlyCount "148"]
[EventDate "2019.07.18"]
[EventType "swiss"]
[EventCountry "HUN"]
[SourceTitle "playchess.com"]
[Source "ChessBase"]
[SourceQuality "1"]
[TimeControl "1200+5"]

1. e4 {[%emt 0:00:04]} d5 {[%emt 0:00:03]} 2. exd5 {[%emt 0:00:07]} Qxd5 {[%emt 0:00:01]} 3. d4 {[%emt 0:00:18]} e5 {[%emt 0:00:47]} 4. c3 {[%emt 0:00:07]} exd4 {[%emt 0:00:19]} 5. cxd4 {[%emt 0:00:03]} Nf6 {[%emt 0:00:28]} 6. Nf3 {[%emt 0:00:05]} Be7 {[%emt 0:01:10]} 7. Nc3 {[%emt 0:00:18]} Qd8 {[%emt 0:00:02]} 8. h3 {[%emt 0:00:41]} O-O {[%emt 0:00:09]} 9. Bc4 {[%emt 0:00:30]} Nbd7 {[%emt 0:00:51]} 10. O-O {[%emt 0:00:09]} Nb6 {[%emt 0:00:02]} 11. Bb3 {[%emt 0:00:27]} c6 {[%emt 0:00:05]} 12. Re1 {[%emt 0:01:00]} Nbd5 {[%emt 0:00:43]} 13. Ne5 {[%emt 0:00:27]} Be6 {[%emt 0:00:33]} 14. Qf3 {[%emt 0:00:56]} Nc7 {[%emt 0:01:02]} 15. Bxe6 {[%emt 0:03:00]} Nxe6 {[%emt 0:00:06]} 16. Be3 {[%emt 0:00:02]} Qa5 {[%emt 0:01:19]} 17. Rad1 {[%emt 0:00:34]} Rad8 {[%emt 0:00:09]} 18. Nd3 {[%emt 0:02:12]} Rfe8 {[%emt 0:00:40]} 19. Nf4 {[%emt 0:00:28]} Ng5 {[%emt 0:01:15]} 20. Qe2 {[%emt 0:00:30]} Bd6 {[%emt 0:00:55]} 21. Qc2 {[%emt 0:00:30]} Nge4 {[%emt 0:01:29]} 22. Qb3 {[%emt 0:02:06]} Qf5 {[%emt 0:00:43]} 23. Nd3 {[%emt 0:00:32]} b5 {[%emt 0:01:12]} 24. Ne5 {[%emt 0:01:30]} Bxe5 {[%emt 0:00:51]} 25. dxe5 {[%emt 0:00:03]} Rxd1 {[%emt 0:00:57]} 26. Rxd1 {[%emt 0:01:04]} Qxe5 {[%emt 0:00:03]} 27. Bxa7 {[%emt 0:00:44]} Nxc3 {[%emt 0:00:04]} 28. bxc3 {[%emt 0:00:04]} Qe4 {[%emt 0:00:56]} 29. f3 {[%emt 0:02:04]} Qf4 {[%emt 0:00:42]} 30. Bf2 {[%emt 0:00:09]} Nd5 {[%emt 0:00:33]} 31. Qc2 {[%emt 0:00:04]} Qc4 {[%emt 0:00:24]} 32. Rc1 {[%emt 0:00:54]} g6 {[%emt 0:00:21]} 33. Qb3 {[%emt 0:00:16]} Qf4 {[%emt 0:00:19]} 34. Rd1 {[%emt 0:00:17]} Re2 {[%emt 0:00:50]} 35. Re1 {[%emt 0:00:29]} Rxe1+ {[%emt 0:00:18]} 36. Bxe1 {[%emt 0:00:00]} Qe3+ {[%emt 0:00:27]} 37. Bf2 {[%emt 0:00:09]} Qc1+ {[%emt 0:00:20]} 38. Kh2 {[%emt 0:00:02]} Qxc3 {[%emt 0:00:02]} 39. Qd1 {[%emt 0:00:03]} Qc4 {[%emt 0:00:46]} 40. a3 {[%emt 0:00:05]} f6 {[%emt 0:00:06]} 41. Qe1 {[%emt 0:00:01]} Kf7 {[%emt 0:00:01]} 42. Qa5 {[%emt 0:00:02]} g5 {[%emt 0:00:30]} 43. Qd8 {[%emt 0:00:05]} Qf4+ {[%emt 0:00:17]} 44. Bg3 {[%emt 0:00:01]} Qf5 {[%emt 0:00:01]} 45. Qa8 {[%emt 0:00:07]} Qe6 {[%emt 0:00:11]} 46. Qh8 {[%emt 0:00:02]} Kg6 {[%emt 0:00:01]} 47. Qb8 {[%emt 0:00:03]} h5 {[%emt 0:00:04]} 48. h4 {[%emt 0:00:04]} gxh4 {[%emt 0:00:12]} 49. Bxh4 {[%emt 0:00:01]} Qe5+ {[%emt 0:00:11]} 50. Qxe5 {[%emt 0:00:04]} fxe5 {[%emt 0:00:00]} 51. Kg3 {[%emt 0:00:02]} Kf5 {[%emt 0:00:02]} 52. Kf2 {[%emt 0:00:01]} e4 {[%emt 0:00:06]} 53. fxe4+ Kxe4 {[%emt 0:00:01]} 54. Bg5 {[%emt 0:00:12]} c5 {[%emt 0:00:02]} 55. Kg3 {[%emt 0:00:04]} Ne3 {[%emt 0:00:14]} 56. Kf2 {[%emt 0:00:13]} Nf5 {[%emt 0:00:04]} 57. Ke2 {[%emt 0:00:02]} c4 {[%emt 0:00:01]} 58. Kd2 {[%emt 0:00:02]} Nd4 {[%emt 0:00:15]} 59. Kc3 {[%emt 0:00:05]} Nc6 {[%emt 0:00:03]} 60. Bf6 {[%emt 0:00:04]} Kd5 {[%emt 0:00:05]} 61. g3 {[%emt 0:00:03]} Kc5 {[%emt 0:00:09]} 62. Bg7 {[%emt 0:00:02]} Kd5 {[%emt 0:00:10]} 63. Bf8 {[%emt 0:00:05]} Ke4 {[%emt 0:00:04]} 64. a4 {[%emt 0:00:02]} bxa4 {[%emt 0:00:00]} 65. Kxc4 {[%emt 0:00:01]} Kf3 {[%emt 0:00:05]} 66. Bd6 {[%emt 0:00:02]} Kg4 {[%emt 0:00:26]} 67. Kb5 {[%emt 0:00:01]} Nd4+ {[%emt 0:00:05]} 68. Kxa4 Nf5 69. Be5 {[%emt 0:00:03]} Nxg3 {[%emt 0:00:02]} 70. Bf6 {[%emt 0:00:01]} Ne4 {[%emt 0:00:00]} 71. Be5 {[%emt 0:00:03]} h4 {[%emt 0:00:01]} 72. Kb4 {[%emt 0:00:01]} Ng3 {[%emt 0:00:01]} 73. Bd4 {[%emt 0:00:03]} h3 {[%emt 0:00:04]} 74. Bg1 {[%emt 0:00:01]} Kf3 {[%emt 0:00:05]} 0-1

[Event "HUN-ch Rapid 2019"]
[Site "Ajka"]
[Date "2019.07.21"]
[Round "10.11"]
[White "Akots, Gabor"]
[Black "Mihok, Oliver"]
[Result "0-1"]
[ECO "E82"]
[WhiteElo "2238"]
[BlackElo "2550"]
[Annotator "ChessBase"]
[PlyCount "58"]
[EventDate "2019.07.18"]
[EventType "swiss"]
[EventCountry "HUN"]
[SourceTitle "playchess.com"]
[Source "ChessBase"]
[SourceQuality "1"]
[TimeControl "1200+5"]

1. d4 {[%emt 0:00:03]} Nf6 {[%emt 0:00:01]} 2. c4 {[%emt 0:00:01]} g6 {[%emt 0:00:02]} 3. Nc3 {[%emt 0:00:01]} Bg7 {[%emt 0:00:02]} 4. e4 {[%emt 0:00:02]} d6 {[%emt 0:00:01]} 5. f3 {[%emt 0:00:01]} O-O {[%emt 0:00:06]} 6. Be3 {[%emt 0:00:02]} b6 {[%emt 0:00:01]} 7. Nge2 {[%emt 0:01:29]} c5 {[%emt 0:00:08]} 8. d5 {[%emt 0:00:03]} e6 {[%emt 0:00:09]} 9. Ng3 {[%emt 0:00:04]} exd5 {[%emt 0:00:11]} 10. cxd5 {[%emt 0:00:02]} Ba6 {[%emt 0:00:30]} 11. Bxa6 {[%emt 0:03:07]} Nxa6 {[%emt 0:00:03]} 12. O-O {[%emt 0:00:16]} Nc7 {[%emt 0:00:07]} 13. a4 {[%emt 0:00:26]} a6 {[%emt 0:00:22]} 14. Qd2 {[%emt 0:05:34]} Re8 {[%emt 0:00:22]} 15. Bh6 {[%emt 0:00:27]} Bh8 {[%emt 0:00:42]} 16. Rae1 {[%emt 0:00:03]} b5 {[%emt 0:00:38]} 17. h3 {[%emt 0:00:11]} bxa4 {[%emt 0:03:03]} 18. f4 {[%emt 0:00:34]} Nb5 {[%emt 0:00:47]} 19. Bg5 {[%emt 0:03:52]} Qd7 {[%emt 0:02:22]} 20. f5 {[%emt 0:00:01]} Rf8 {[%emt 0:01:54]} 21. e5 {[%emt 0:00:41]} dxe5 {[%emt 0:00:48]} 22. Bxf6 {[%emt 0:00:01]} Bxf6 {[%emt 0:00:21]} 23. Nge4 {[%emt 0:00:01]} Qd8 {[%emt 0:02:18]} 24. Nxf6+ {[%emt 0:00:02]} Qxf6 {[%emt 0:00:01]} 25. Ne4 {[%emt 0:00:00]} Qh4 {[%emt 0:00:21]} 26. f6 {[%emt 0:00:01]} Rad8 {[%emt 0:01:15]} 27. g3 {[%emt 0:02:24]} Qh5 {[%emt 0:00:45]} 28. Nf2 {[%emt 0:01:00]} Nd4 {[%emt 0:00:16]} 29. g4 {[%emt 0:00:42]} Nf3+ {[%emt 0:00:07]} 0-1

[Event "HUN-ch Rapid 2019"]
[Site "Ajka"]
[Date "2019.07.21"]
[Round "10.12"]
[White "Hoang, Thanh Trang"]
[Black "Gelle, Istvan"]
[Result "0-1"]
[ECO "D12"]
[WhiteElo "2414"]
[BlackElo "2325"]
[Annotator "NA"]
[PlyCount "82"]
[EventDate "2019.07.18"]
[EventType "swiss"]
[EventCountry "HUN"]
[SourceTitle "playchess.com"]
[Source "ChessBase"]
[SourceQuality "1"]
[TimeControl "1200+5"]

1. d4 {[%emt 0:00:04]} d5 {[%emt 0:00:01]} 2. c4 {[%emt 0:00:05]} c6 {[%emt 0:00:02]} 3. Nf3 {[%emt 0:00:05]} Nf6 {[%emt 0:00:03]} 4. e3 {[%emt 0:00:07]} Bf5 {[%emt 0:00:09]} 5. Nc3 {[%emt 0:00:06]} a6 {[%emt 0:00:45]} 6. Qb3 {[%emt 0:01:09]} b5 {[%emt 0:00:03]} 7. c5 {[%emt 0:00:23]} a5 {[%emt 0:00:11]} 8. Ne5 {[%emt 0:01:00]} a4 {[%emt 0:02:01]} 9. Qd1 {[%emt 0:00:05]} h6 {[%emt 0:03:03]} 10. Bd2 {[%emt 0:01:12]} e6 {[%emt 0:01:22]} 11. g4 {[%emt 0:03:49]} Be4 {[%emt 0:00:25]} 12. f3 {[%emt 0:00:27]} Bh7 {[%emt 0:00:02]} 13. h4 {[%emt 0:00:54]} Nfd7 {[%emt 0:00:23]} 14. f4 {[%emt 0:00:21]} Nxe5 {[%emt 0:02:15]} 15. fxe5 {[%emt 0:00:07]} Be7 {[%emt 0:00:18]} 16. h5 {[%emt 0:00:56]} Bh4+ {[%emt 0:01:06]} 17. Ke2 {[%emt 0:00:01]} O-O {[%emt 0:00:33]} 18. Be1 {[%emt 0:00:12]} Bg5 {[%emt 0:00:25]} 19. Bg2 {[%emt 0:00:24]} Nd7 {[%emt 0:00:48]} 20. Bg3 {[%emt 0:00:11]} f6 {[%emt 0:00:48]} 21. exf6 {[%emt 0:00:13]} Nxf6 {[%emt 0:00:03]} 22. Kd2 {[%emt 0:00:31]} Ne4+ {[%emt 0:00:52]} 23. Bxe4 {[%emt 0:02:02]} dxe4 {[%emt 0:00:44]} 24. Ke2 {[%emt 0:01:56]} Rf3 {[%emt 0:00:44]} 25. Bf2 {[%emt 0:00:05]} Qa5 {[%emt 0:01:08]} 26. Qg1 {[%emt 0:01:27]} Raf8 {[%emt 0:00:17]} 27. Nd1 {[%emt 0:00:20]} b4 {[%emt 0:00:18]} 28. Rc1 {[%emt 0:00:43]} Qb5+ {[%emt 0:00:49]} 29. Ke1 {[%emt 0:00:04]} Qd3 {[%emt 0:00:48]} 30. Rh2 {[%emt 0:02:02]} e5 {[%emt 0:00:33]} 31. Qf1 {[%emt 0:00:14]} exd4 {[%emt 0:00:12]} 32. Qxd3 {[%emt 0:00:22]} exd3 {[%emt 0:00:01]} 33. Rc4 {[%emt 0:00:13]} dxe3 {[%emt 0:00:09]} 34. Bxe3 {[%emt 0:00:02]} Bxe3 {[%emt 0:00:05]} 35. Nxe3 {[%emt 0:00:02]} Rxe3+ {[%emt 0:00:02]} 36. Kd2 {[%emt 0:00:00]} Rfe8 {[%emt 0:00:13]} 37. Rxb4 {[%emt 0:00:02]} Re2+ {[%emt 0:00:09]} 38. Rxe2 {[%emt 0:00:01]} dxe2 {[%emt 0:00:09]} 39. Ke1 {[%emt 0:00:01]} Bd3 {[%emt 0:00:08]} 40. Rd4 {[%emt 0:00:01]} Bb5 {[%emt 0:00:04]} 41. b3 {[%emt 0:00:34]} Rf8 {[%emt 0:00:07]} 0-1

[Event "HUN-ch Rapid 2019"]
[Site "Ajka"]
[Date "2019.07.21"]
[Round "10.13"]
[White "Jakab, Attila"]
[Black "Varga, Klara"]
[Result "1/2-1/2"]
[ECO "E57"]
[WhiteElo "2377"]
[BlackElo "2146"]
[Annotator "NA"]
[PlyCount "59"]
[EventDate "2019.07.18"]
[EventType "swiss"]
[EventCountry "HUN"]
[SourceTitle "playchess.com"]
[Source "ChessBase"]
[SourceQuality "1"]
[TimeControl "1200+5"]

1. d4 {[%emt 0:07:18]} Nf6 {[%emt 0:00:04]} 2. c4 {[%emt 0:00:02]} e6 {[%emt 0:00:01]} 3. Nc3 {[%emt 0:00:01]} Bb4 {[%emt 0:00:03]} 4. e3 {[%emt 0:00:05]} O-O {[%emt 0:00:03]} 5. Bd3 {[%emt 0:00:02]} c5 {[%emt 0:00:21]} 6. Nf3 {[%emt 0:00:02]} d5 {[%emt 0:00:11]} 7. O-O {[%emt 0:00:03]} dxc4 {[%emt 0:00:13]} 8. Bxc4 {[%emt 0:00:02]} Nc6 {[%emt 0:00:06]} 9. a3 {[%emt 0:02:37]} cxd4 {[%emt 0:00:05]} 10. exd4 {[%emt 0:00:08]} Be7 {[%emt 0:00:06]} 11. Re1 {[%emt 0:00:23]} a6 {[%emt 0:00:10]} 12. Bg5 {[%emt 0:00:50]} h6 {[%emt 0:00:03]} 13. Bh4 {[%emt 0:00:01]} b5 {[%emt 0:00:15]} 14. Ba2 {[%emt 0:00:07]} Bb7 {[%emt 0:00:01]} 15. Qd3 {[%emt 0:00:06]} b4 {[%emt 0:00:27]} 16. Na4 {[%emt 0:00:14]} bxa3 {[%emt 0:02:59]} 17. bxa3 {[%emt 0:00:05]} Nb8 {[%emt 0:00:20]} 18. Ne5 {[%emt 0:00:59]} Nbd7 {[%emt 0:00:42]} 19. Nxd7 {[%emt 0:00:07]} Qxd7 {[%emt 0:00:27]} 20. Bxf6 {[%emt 0:05:16]} Bxf6 {[%emt 0:00:27]} 21. Nc5 {[%emt 0:00:02]} Qc6 {[%emt 0:00:10]} 22. Nxb7 {[%emt 0:00:32]} Qxb7 {[%emt 0:00:02]} 23. Rad1 {[%emt 0:00:06]} Rad8 {[%emt 0:01:42]} 24. d5 {[%emt 0:00:23]} exd5 {[%emt 0:00:05]} 25. Bxd5 {[%emt 0:00:01]} Qb5 {[%emt 0:01:07]} 26. Qxb5 {[%emt 0:01:23]} axb5 {[%emt 0:00:02]} 27. Bc6 {[%emt 0:00:00]} Bb2 {[%emt 0:00:23]} 28. Bxb5 {[%emt 0:00:03]} Bxa3 {[%emt 0:00:03]} 29. Rxd8 {[%emt 0:00:02]} Rxd8 {[%emt 0:00:01]} 30. Re8+ {[%emt 0:00:01]} 1/2-1/2